[Event "Early-Titled-Tuesday-Blitz-January-23-2024"]
[Site "Chess.com"]
[Date "2024.01.23"]
[Round "3"]
[White "crazy_m_attack"]
[Black "Iskusnyh"]
[Result "0-1"]
[WhiteElo "2469"]
[BlackElo "2650"]
[TimeControl "180+1"]
[EndTime "8:28:38 PST"]
[Termination "Iskusnyh won on time"]

1. e4 {[%clk 0:03:00.9]} 1... e6 {[%clk 0:03:00.1]} 2. d4 {[%clk 0:03:00.7]}
2... d5 {[%clk 0:03:00.5]} 3. Nc3 {[%clk 0:03:01.6]} 3... Nf6 {[%clk 0:03:00]}
4. e5 {[%clk 0:03:01.9]} 4... Nfd7 {[%clk 0:02:59.8]} 5. Nce2 {[%clk 0:03:02.8]}
5... c5 {[%clk 0:02:59.3]} 6. c3 {[%clk 0:03:03.5]} 6... Nc6 {[%clk 0:02:59.6]}
7. Nf3 {[%clk 0:03:04.1]} 7... f6 {[%clk 0:02:41]} 8. Nf4 {[%clk 0:03:02.3]}
8... Ndxe5 {[%clk 0:02:25.9]} 9. dxe5 {[%clk 0:03:00.4]} 9... fxe5 {[%clk
0:02:25.7]} 10. Nh3 {[%clk 0:02:48.8]} 10... e4 {[%clk 0:02:13.7]} 11. Be2
{[%clk 0:02:41.2]} 11... exf3 {[%clk 0:02:09.1]} 12. Bxf3 {[%clk 0:02:42.1]}
12... Bd6 {[%clk 0:02:04]} 13. Bh5+ {[%clk 0:02:37.1]} 13... g6 {[%clk 0:02:03]}
14. Be2 {[%clk 0:02:33.7]} 14... O-O {[%clk 0:01:58.1]} 15. Bh6 {[%clk
0:02:32.4]} 15... Rf7 {[%clk 0:01:26.7]} 16. Ng5 {[%clk 0:02:26.7]} 16... Rf5
{[%clk 0:01:26.5]} 17. h4 {[%clk 0:02:17.8]} 17... Ne5 {[%clk 0:01:25.8]} 18.
Qd2 {[%clk 0:02:11.5]} 18... Bd7 {[%clk 0:01:14.2]} 19. Rf1 {[%clk 0:01:48.9]}
19... c4 {[%clk 0:00:52.6]} 20. f4 {[%clk 0:01:40.6]} 20... Nf7 {[%clk
0:00:46.2]} 21. Nxf7 {[%clk 0:01:39.5]} 21... Qxh4+ {[%clk 0:00:45.5]} 22. Kd1
{[%clk 0:01:31.9]} 22... Rxf7 {[%clk 0:00:42.6]} 23. Bg5 {[%clk 0:01:31.9]}
23... Qg3 {[%clk 0:00:40.7]} 24. Kc2 {[%clk 0:01:15]} 24... Qxg2 {[%clk
0:00:33]} 25. Rae1 {[%clk 0:01:07]} 25... Raf8 {[%clk 0:00:20.2]} 26. Kc1 {[%clk
0:01:06.9]} 26... Qg3 {[%clk 0:00:17]} 27. Rg1 {[%clk 0:01:05.8]} 27... Qxg5
{[%clk 0:00:15.6]} 28. fxg5 {[%clk 0:00:58.5]} 28... Bf4 {[%clk 0:00:15.7]} 29.
Bg4 {[%clk 0:00:42.3]} 29... Bxd2+ {[%clk 0:00:15.2]} 30. Kxd2 {[%clk
0:00:43.2]} 30... Re7 {[%clk 0:00:15.4]} 31. Re5 {[%clk 0:00:40.9]} 31... Rf4
{[%clk 0:00:15.1]} 32. Ke3 {[%clk 0:00:38.5]} 32... Rff7 {[%clk 0:00:14]} 33.
Re1 {[%clk 0:00:37.6]} 33... Kg7 {[%clk 0:00:13.5]} 34. Kd2 {[%clk 0:00:36.7]}
34... h6 {[%clk 0:00:13.9]} 35. gxh6+ {[%clk 0:00:36.4]} 35... Kxh6 {[%clk
0:00:14.2]} 36. Bxe6 {[%clk 0:00:32]} 36... Bxe6 {[%clk 0:00:14.3]} 37. Rxe6
{[%clk 0:00:32.9]} 37... Rxe6 {[%clk 0:00:14.8]} 38. Rxe6 {[%clk 0:00:33.3]}
38... Rf2+ {[%clk 0:00:15.4]} 39. Kc1 {[%clk 0:00:32]} 39... Rf1+ {[%clk
0:00:15.2]} 40. Kc2 {[%clk 0:00:29.7]} 40... Rf7 {[%clk 0:00:14.6]} 41. Re5
{[%clk 0:00:27.4]} 41... g5 {[%clk 0:00:14.5]} 42. b3 {[%clk 0:00:18.6]} 42...
cxb3+ {[%clk 0:00:13.8]} 43. axb3 {[%clk 0:00:18.7]} 43... g4 {[%clk 0:00:14.5]}
44. Kd2 {[%clk 0:00:19.2]} 44... g3 {[%clk 0:00:14.6]} 45. Re3 {[%clk
0:00:12.5]} 45... Rg7 {[%clk 0:00:12.1]} 46. Re1 {[%clk 0:00:11.9]} 46... g2
{[%clk 0:00:12.3]} 47. Rg1 {[%clk 0:00:12.2]} 47... Rg3 {[%clk 0:00:11.6]} 48.
c4 {[%clk 0:00:10.1]} 48... dxc4 {[%clk 0:00:11.3]} 49. bxc4 {[%clk 0:00:11]}
49... Kg5 {[%clk 0:00:11.7]} 50. Ke2 {[%clk 0:00:10.5]} 50... Kg4 {[%clk
0:00:12.1]} 51. Kf2 {[%clk 0:00:10.9]} 51... Kh3 {[%clk 0:00:11.9]} 52. c5
{[%clk 0:00:07.8]} 52... Kh2 {[%clk 0:00:11.6]} 53. c6 {[%clk 0:00:03.4]} 53...
bxc6 {[%clk 0:00:11.8]} 0-1

[Event "Early-Titled-Tuesday-Blitz-January-23-2024"]
[Site "Chess.com"]
[Date "2024.01.23"]
[Round "3"]
[White "Aygehovit1992"]
[Black "Sanan_Sjugirov"]
[Result "0-1"]
[WhiteElo "2716"]
[BlackElo "3002"]
[TimeControl "180+1"]
[EndTime "8:28:40 PST"]
[Termination "Sanan_Sjugirov won by resignation"]

1. e4 {[%clk 0:02:58.4]} 1... c5 {[%clk 0:02:59.8]} 2. Nc3 {[%clk 0:02:57.4]}
2... d6 {[%clk 0:02:59.6]} 3. f4 {[%clk 0:02:56.5]} 3... Nc6 {[%clk 0:02:56]} 4.
Nf3 {[%clk 0:02:57.4]} 4... Nf6 {[%clk 0:02:56]} 5. Bb5 {[%clk 0:02:57.7]} 5...
Bd7 {[%clk 0:02:55.4]} 6. Bxc6 {[%clk 0:02:56.1]} 6... Bxc6 {[%clk 0:02:55.4]}
7. d3 {[%clk 0:02:56.6]} 7... e6 {[%clk 0:02:53]} 8. O-O {[%clk 0:02:56.3]} 8...
Be7 {[%clk 0:02:52.5]} 9. Qe1 {[%clk 0:02:56.6]} 9... h6 {[%clk 0:02:49.2]} 10.
Bd2 {[%clk 0:02:52.9]} 10... Qc7 {[%clk 0:02:32]} 11. e5 {[%clk 0:02:50.5]}
11... Nd5 {[%clk 0:02:09]} 12. Ne4 {[%clk 0:02:42.2]} 12... dxe5 {[%clk
0:01:56.2]} 13. fxe5 {[%clk 0:02:43.1]} 13... O-O-O {[%clk 0:01:43.1]} 14. a3
{[%clk 0:02:39.4]} 14... g5 {[%clk 0:01:38.8]} 15. b4 {[%clk 0:02:07.3]} 15...
g4 {[%clk 0:01:27.8]} 16. Nd6+ {[%clk 0:02:06.9]} 16... Rxd6 {[%clk 0:01:19.1]}
17. exd6 {[%clk 0:02:05.7]} 17... Bxd6 {[%clk 0:01:20]} 18. bxc5 {[%clk
0:01:44.7]} 18... Bxc5+ {[%clk 0:01:20.3]} 19. d4 {[%clk 0:01:45]} 19... Bb6
{[%clk 0:01:12.8]} 20. Nh4 {[%clk 0:01:31.3]} 20... Bxd4+ {[%clk 0:01:11.8]} 21.
Kh1 {[%clk 0:01:31.4]} 21... Bxa1 {[%clk 0:00:56.7]} 22. Qxa1 {[%clk 0:01:32.3]}
22... Rd8 {[%clk 0:00:56.8]} 23. Bxh6 {[%clk 0:01:28.8]} 23... Qe7 {[%clk
0:00:39]} 24. c4 {[%clk 0:01:07.4]} 24... Nb6 {[%clk 0:00:39]} 25. Qe1 {[%clk
0:01:00.8]} 25... Nxc4 {[%clk 0:00:34.8]} 26. Bf4 {[%clk 0:00:56.4]} 26... Qc5
{[%clk 0:00:26.7]} 27. Qc3 {[%clk 0:00:41.5]} 27... Qd4 {[%clk 0:00:23.7]} 28.
Qg3 {[%clk 0:00:34.1]} 28... Qd3 {[%clk 0:00:18.8]} 29. Qxd3 {[%clk 0:00:23.2]}
29... Rxd3 {[%clk 0:00:19.7]} 30. a4 {[%clk 0:00:15.9]} 30... Bxa4 {[%clk
0:00:17.2]} 31. Bg3 {[%clk 0:00:13.3]} 31... Bc6 {[%clk 0:00:14.5]} 32. Kg1
{[%clk 0:00:13.3]} 32... f5 {[%clk 0:00:13.1]} 33. Ng6 {[%clk 0:00:13.6]} 33...
Ne3 {[%clk 0:00:11.9]} 34. Re1 {[%clk 0:00:12.3]} 34... Rd1 {[%clk 0:00:05]} 35.
Rxd1 {[%clk 0:00:04.3]} 35... Nxd1 {[%clk 0:00:05.9]} 36. Be5 {[%clk 0:00:04.4]}
36... Kd7 {[%clk 0:00:04.2]} 37. Bd4 {[%clk 0:00:04.6]} 37... a5 {[%clk
0:00:02.9]} 38. Kf1 {[%clk 0:00:05]} 38... b5 {[%clk 0:00:02.3]} 39. Ke1 {[%clk
0:00:05.5]} 39... Bxg2 {[%clk 0:00:01.6]} 40. Kxd1 {[%clk 0:00:05.7]} 40... b4
{[%clk 0:00:02.2]} 41. Kc2 {[%clk 0:00:05.9]} 41... a4 {[%clk 0:00:02.6]} 42.
Ne5+ {[%clk 0:00:05.5]} 42... Kd6 {[%clk 0:00:02.8]} 43. Nf7+ {[%clk 0:00:04.8]}
43... Kd5 {[%clk 0:00:02.8]} 44. Bg7 {[%clk 0:00:05.3]} 44... Be4+ {[%clk
0:00:01.9]} 45. Kc1 {[%clk 0:00:05.8]} 45... a3 {[%clk 0:00:02.3]} 46. Ng5
{[%clk 0:00:06.4]} 46... Bd3 {[%clk 0:00:02.3]} 47. Nh7 {[%clk 0:00:06]} 47...
Ke4 {[%clk 0:00:01.8]} 48. Nf6+ {[%clk 0:00:06]} 48... Ke3 {[%clk 0:00:02.2]}
49. Nd7 {[%clk 0:00:06.3]} 49... f4 {[%clk 0:00:02.5]} 50. Nc5 {[%clk
0:00:05.8]} 50... f3 {[%clk 0:00:02.6]} 51. Bh6+ {[%clk 0:00:05.9]} 51... Ke2
{[%clk 0:00:03.1]} 52. Nb3 {[%clk 0:00:05.4]} 52... f2 {[%clk 0:00:03.3]} 53.
Nd4+ {[%clk 0:00:05.7]} 53... Kf1 {[%clk 0:00:03.8]} 54. Kd2 {[%clk 0:00:05.5]}
54... Kg2 {[%clk 0:00:03.6]} 55. Kxd3 {[%clk 0:00:04.8]} 55... f1=Q+ {[%clk
0:00:04.2]} 56. Ke3 {[%clk 0:00:04.4]} 56... a2 {[%clk 0:00:05.1]} 0-1

[Event "Early-Titled-Tuesday-Blitz-January-23-2024"]
[Site "Chess.com"]
[Date "2024.01.23"]
[Round "3"]
[White "Crazy_girl99"]
[Black "m_ezat"]
[Result "1/2-1/2"]
[WhiteElo "2619"]
[BlackElo "2445"]
[TimeControl "180+1"]
[EndTime "8:28:40 PST"]
[Termination "Game drawn by repetition"]

1. e4 {[%clk 0:02:56.3]} 1... e5 {[%clk 0:02:59.1]} 2. Nf3 {[%clk 0:02:53.7]}
2... Nc6 {[%clk 0:02:56.3]} 3. Bc4 {[%clk 0:02:53.7]} 3... Nf6 {[%clk
0:02:54.5]} 4. d3 {[%clk 0:02:52.3]} 4... h6 {[%clk 0:02:51.9]} 5. Nc3 {[%clk
0:02:52.3]} 5... Bb4 {[%clk 0:02:51]} 6. Bd2 {[%clk 0:02:51.4]} 6... Bxc3 {[%clk
0:02:49.7]} 7. Bxc3 {[%clk 0:02:50.9]} 7... d5 {[%clk 0:02:48]} 8. exd5 {[%clk
0:02:41.4]} 8... Nxd5 {[%clk 0:02:47.9]} 9. Bxe5 {[%clk 0:02:38]} 9... O-O
{[%clk 0:02:41.7]} 10. O-O {[%clk 0:02:33.2]} 10... Bg4 {[%clk 0:02:39.6]} 11.
Bg3 {[%clk 0:02:30.8]} 11... Nd4 {[%clk 0:02:37.7]} 12. c3 {[%clk 0:02:25.4]}
12... Nxf3+ {[%clk 0:02:37.2]} 13. gxf3 {[%clk 0:02:25.8]} 13... Bh5 {[%clk
0:02:28.7]} 14. Re1 {[%clk 0:02:25.9]} 14... Nb6 {[%clk 0:02:25.7]} 15. Bb3
{[%clk 0:02:23.2]} 15... Qf6 {[%clk 0:02:25.1]} 16. Qd2 {[%clk 0:02:12.1]} 16...
Bxf3 {[%clk 0:02:22.5]} 17. Re3 {[%clk 0:02:06.4]} 17... Bc6 {[%clk 0:02:20.4]}
18. Rae1 {[%clk 0:02:04.1]} 18... Rfe8 {[%clk 0:02:12.6]} 19. Rxe8+ {[%clk
0:02:00.8]} 19... Rxe8 {[%clk 0:02:08.4]} 20. Rxe8+ {[%clk 0:01:59.9]} 20...
Bxe8 {[%clk 0:02:08.5]} 21. Bxc7 {[%clk 0:01:59.5]} 21... Bc6 {[%clk 0:02:03.9]}
22. Qf4 {[%clk 0:01:52.3]} 22... Qg6+ {[%clk 0:02:03.5]} 23. Qg3 {[%clk
0:01:51.9]} 23... Qh5 {[%clk 0:01:58]} 24. Be5 {[%clk 0:01:44.8]} 24... Qg5
{[%clk 0:01:47.5]} 25. Qxg5 {[%clk 0:01:42.3]} 25... hxg5 {[%clk 0:01:48.4]} 26.
c4 {[%clk 0:01:40.1]} 26... Nd7 {[%clk 0:01:47.4]} 27. Bd6 {[%clk 0:01:32.3]}
27... Bf3 {[%clk 0:01:43]} 28. d4 {[%clk 0:01:30.8]} 28... Nf6 {[%clk
0:01:27.6]} 29. d5 {[%clk 0:01:26.5]} 29... Ne4 {[%clk 0:01:26.3]} 30. Bb4
{[%clk 0:01:18.7]} 30... b6 {[%clk 0:01:25.9]} 31. d6 {[%clk 0:01:15.4]} 31...
Kf8 {[%clk 0:01:24.2]} 32. Ba4 {[%clk 0:01:14]} 32... Nc5 {[%clk 0:01:21.8]} 33.
Bc2 {[%clk 0:00:48.6]} 33... Ke8 {[%clk 0:01:15.1]} 34. Bc3 {[%clk 0:00:48.4]}
34... f6 {[%clk 0:01:14.2]} 35. b4 {[%clk 0:00:48]} 35... Be4 {[%clk 0:01:05.4]}
36. Bd1 {[%clk 0:00:43.2]} 36... Nb7 {[%clk 0:01:01.5]} 37. Ba4+ {[%clk
0:00:43.1]} 37... Kd8 {[%clk 0:01:01.1]} 38. c5 {[%clk 0:00:38.9]} 38... bxc5
{[%clk 0:01:00.7]} 39. bxc5 {[%clk 0:00:39.4]} 39... Nxc5 {[%clk 0:00:59.3]} 40.
Ba5+ {[%clk 0:00:37.1]} 40... Kc8 {[%clk 0:00:59.4]} 41. Be8 {[%clk 0:00:35.2]}
41... Bf5 {[%clk 0:00:55.6]} 42. f3 {[%clk 0:00:26.2]} 42... Bd7 {[%clk
0:00:48]} 43. Bg6 {[%clk 0:00:24.7]} 43... Be6 {[%clk 0:00:43.9]} 44. Bb4 {[%clk
0:00:19]} 44... Nb7 {[%clk 0:00:41.2]} 45. Be8 {[%clk 0:00:18.9]} 45... Bd7
{[%clk 0:00:28.9]} 46. Bf7 {[%clk 0:00:19.1]} 46... Bc6 {[%clk 0:00:27.3]} 47.
Be6+ {[%clk 0:00:18.6]} 47... Kd8 {[%clk 0:00:22.8]} 48. Kf2 {[%clk 0:00:17.8]}
48... a5 {[%clk 0:00:22.6]} 49. Ba3 {[%clk 0:00:17.9]} 49... Bd7 {[%clk
0:00:22.2]} 50. Bd5 {[%clk 0:00:17.9]} 50... Kc8 {[%clk 0:00:20.2]} 51. Ke3
{[%clk 0:00:18.3]} 51... Nd8 {[%clk 0:00:20.3]} 52. Kd4 {[%clk 0:00:18.5]} 52...
Be6 {[%clk 0:00:18.5]} 53. Be4 {[%clk 0:00:18]} 53... Kd7 {[%clk 0:00:12.9]} 54.
Kc5 {[%clk 0:00:16.3]} 54... Bxa2 {[%clk 0:00:12.6]} 55. Kb6 {[%clk 0:00:09.3]}
55... a4 {[%clk 0:00:07.6]} 56. Bd3 {[%clk 0:00:07.6]} 56... Bd5 {[%clk
0:00:07.6]} 57. Bb5+ {[%clk 0:00:07.9]} 57... Bc6 {[%clk 0:00:07.9]} 58. Bd3
{[%clk 0:00:05.2]} 58... Bd5 {[%clk 0:00:06.2]} 59. Bb5+ {[%clk 0:00:04.1]}
59... Bc6 {[%clk 0:00:06.4]} 60. Bd3 {[%clk 0:00:04.4]} 60... Bd5 {[%clk
0:00:06.7]} 1/2-1/2

[Event "Early-Titled-Tuesday-Blitz-January-23-2024"]
[Site "Chess.com"]
[Date "2024.01.23"]
[Round "3"]
[White "gmcorrales"]
[Black "Goryachkina"]
[Result "0-1"]
[WhiteElo "2929"]
[BlackElo "2700"]
[TimeControl "180+1"]
[EndTime "8:28:41 PST"]
[Termination "Goryachkina won by resignation"]

1. d4 {[%clk 0:03:00.9]} 1... Nf6 {[%clk 0:02:59.4]} 2. c4 {[%clk 0:03:00.5]}
2... e6 {[%clk 0:02:59.5]} 3. Nc3 {[%clk 0:03:00.8]} 3... Bb4 {[%clk 0:02:58.6]}
4. Qc2 {[%clk 0:02:58.2]} 4... d5 {[%clk 0:02:57.4]} 5. a3 {[%clk 0:02:58.5]}
5... Bxc3+ {[%clk 0:02:56]} 6. Qxc3 {[%clk 0:02:59.4]} 6... O-O {[%clk
0:02:55.4]} 7. Bg5 {[%clk 0:02:57.8]} 7... h6 {[%clk 0:02:41.9]} 8. Bxf6 {[%clk
0:02:57.3]} 8... Qxf6 {[%clk 0:02:41.9]} 9. cxd5 {[%clk 0:02:58]} 9... exd5
{[%clk 0:02:39.7]} 10. e3 {[%clk 0:02:57.8]} 10... c6 {[%clk 0:02:38.3]} 11. Bd3
{[%clk 0:02:58]} 11... Bf5 {[%clk 0:02:36.1]} 12. Nf3 {[%clk 0:02:57.2]} 12...
Nd7 {[%clk 0:02:30.3]} 13. O-O {[%clk 0:02:57.2]} 13... Rfe8 {[%clk 0:02:24.1]}
14. b4 {[%clk 0:02:56.7]} 14... Bxd3 {[%clk 0:02:11.9]} 15. Qxd3 {[%clk
0:02:57.6]} 15... a6 {[%clk 0:02:11.7]} 16. a4 {[%clk 0:02:57.4]} 16... Qd6
{[%clk 0:02:08.3]} 17. b5 {[%clk 0:02:55.6]} 17... cxb5 {[%clk 0:02:04.9]} 18.
axb5 {[%clk 0:02:56.5]} 18... a5 {[%clk 0:02:04.1]} 19. g3 {[%clk 0:02:47.5]}
19... Nb6 {[%clk 0:02:01.5]} 20. Ne5 {[%clk 0:02:45.8]} 20... Rec8 {[%clk
0:01:47]} 21. Rfc1 {[%clk 0:02:40.6]} 21... Rxc1+ {[%clk 0:01:35.5]} 22. Rxc1
{[%clk 0:02:41.5]} 22... a4 {[%clk 0:01:28.5]} 23. h4 {[%clk 0:01:40.6]} 23...
a3 {[%clk 0:01:19.1]} 24. Ra1 {[%clk 0:01:40]} 24... f6 {[%clk 0:00:59.4]} 25.
Qg6 {[%clk 0:01:39.5]} 25... Qf8 {[%clk 0:00:46.8]} 26. Ng4 {[%clk 0:01:39]}
26... Kh8 {[%clk 0:00:45.4]} 27. Nh2 {[%clk 0:01:33]} 27... a2 {[%clk
0:00:33.8]} 28. Qc2 {[%clk 0:01:31.6]} 28... Qa3 {[%clk 0:00:30.3]} 29. h5
{[%clk 0:01:31.5]} 29... Nc4 {[%clk 0:00:29.5]} 30. Nf3 {[%clk 0:01:24.3]} 30...
Qb2 {[%clk 0:00:19.6]} 31. Qxb2 {[%clk 0:01:24.2]} 31... Nxb2 {[%clk 0:00:19.9]}
32. Nd2 {[%clk 0:01:25.1]} 32... Nd3 {[%clk 0:00:18.5]} 33. Nb3 {[%clk 0:01:24]}
33... Nb4 {[%clk 0:00:18.6]} 34. Nc1 {[%clk 0:01:20.8]} 34... Ra5 {[%clk
0:00:16.2]} 35. Kf1 {[%clk 0:01:03.7]} 35... Rxb5 {[%clk 0:00:16.6]} 36. Ke2
{[%clk 0:01:04.2]} 36... Ra5 {[%clk 0:00:17]} 37. Kd2 {[%clk 0:01:03.4]} 37...
Ra3 {[%clk 0:00:17.1]} 38. Ne2 {[%clk 0:01:00.7]} 38... Rb3 {[%clk 0:00:13.2]}
39. Kc1 {[%clk 0:00:55.5]} 39... Kg8 {[%clk 0:00:12.6]} 40. g4 {[%clk
0:00:53.3]} 40... Kf7 {[%clk 0:00:12.6]} 41. Nf4 {[%clk 0:00:48.7]} 41... b5
{[%clk 0:00:11.8]} 42. Ne2 {[%clk 0:00:48.5]} 42... Ke6 {[%clk 0:00:11.1]} 43.
Nf4+ {[%clk 0:00:49]} 43... Kd6 {[%clk 0:00:11.7]} 44. Ne2 {[%clk 0:00:48.4]}
44... Kc6 {[%clk 0:00:05.1]} 45. Ng3 {[%clk 0:00:48.9]} 45... Kd6 {[%clk
0:00:04.6]} 46. Nf5+ {[%clk 0:00:49.3]} 46... Kc6 {[%clk 0:00:05.1]} 47. Nxg7
{[%clk 0:00:49.6]} 47... Kb6 {[%clk 0:00:03.8]} 48. Nf5 {[%clk 0:00:48.5]} 48...
Ka5 {[%clk 0:00:03.7]} 49. Nxh6 {[%clk 0:00:48.5]} 49... Ka4 {[%clk 0:00:04.2]}
50. Nf5 {[%clk 0:00:48]} 50... Ka3 {[%clk 0:00:04.5]} 51. h6 {[%clk 0:00:47.4]}
51... Rc3+ {[%clk 0:00:04.9]} 52. Kd1 {[%clk 0:00:47.1]} 52... Kb2 {[%clk
0:00:04.9]} 53. Rxa2+ {[%clk 0:00:45.9]} 53... Nxa2 {[%clk 0:00:05.3]} 54. Ke2
{[%clk 0:00:45.7]} 54... Rc2+ {[%clk 0:00:05.4]} 55. Kf3 {[%clk 0:00:45.9]}
55... Rc8 {[%clk 0:00:06.3]} 56. Kg3 {[%clk 0:00:42.8]} 56... b4 {[%clk
0:00:06.6]} 57. Ne7 {[%clk 0:00:42.7]} 57... Rh8 {[%clk 0:00:06.5]} 58. Nxd5
{[%clk 0:00:43.6]} 58... b3 {[%clk 0:00:06.5]} 59. Nxf6 {[%clk 0:00:41.4]} 59...
Rxh6 {[%clk 0:00:06.3]} 60. g5 {[%clk 0:00:41]} 60... Rh1 {[%clk 0:00:06.5]} 61.
Ng4 {[%clk 0:00:39.5]} 61... Kc2 {[%clk 0:00:06.1]} 62. g6 {[%clk 0:00:40.4]}
62... Rh8 {[%clk 0:00:06]} 63. Nf6 {[%clk 0:00:39.6]} 63... b2 {[%clk 0:00:06]}
64. g7 {[%clk 0:00:40.5]} 64... Rb8 {[%clk 0:00:06.2]} 65. Nd7 {[%clk
0:00:38.5]} 65... Rg8 {[%clk 0:00:06.3]} 66. Kf4 {[%clk 0:00:37.2]} 66... Rxg7
{[%clk 0:00:06.7]} 67. e4 {[%clk 0:00:38.1]} 67... b1=Q {[%clk 0:00:06.8]} 68.
Nc5 {[%clk 0:00:37.8]} 68... Rf7+ {[%clk 0:00:07.2]} 69. Ke5 {[%clk 0:00:37.6]}
69... Rxf2 {[%clk 0:00:07.2]} 70. Ne6 {[%clk 0:00:38.1]} 70... Nc3 {[%clk
0:00:07.4]} 71. d5 {[%clk 0:00:38.5]} 71... Qb8+ {[%clk 0:00:07.3]} 72. d6
{[%clk 0:00:38.6]} 72... Nb5 {[%clk 0:00:07.7]} 73. Nc7 {[%clk 0:00:37.6]} 73...
Nxc7 {[%clk 0:00:07.5]} 0-1

[Event "Early-Titled-Tuesday-Blitz-January-23-2024"]
[Site "Chess.com"]
[Date "2024.01.23"]
[Round "3"]
[White "Mistango"]
[Black "Elsa167"]
[Result "0-1"]
[WhiteElo "2525"]
[BlackElo "2908"]
[TimeControl "180+1"]
[EndTime "8:28:41 PST"]
[Termination "Elsa167 won on time"]

1. e4 {[%clk 0:03:00.9]} 1... e6 {[%clk 0:02:58.4]} 2. d4 {[%clk 0:03:00.8]}
2... d5 {[%clk 0:02:58.8]} 3. Nc3 {[%clk 0:03:01.3]} 3... Bb4 {[%clk 0:02:58.4]}
4. Qd3 {[%clk 0:03:01.5]} 4... Ne7 {[%clk 0:02:52.8]} 5. Ne2 {[%clk 0:02:48.1]}
5... O-O {[%clk 0:02:50.4]} 6. Bd2 {[%clk 0:02:46.5]} 6... b6 {[%clk 0:02:29.7]}
7. O-O-O {[%clk 0:02:40.9]} 7... Ba6 {[%clk 0:02:28.8]} 8. Qg3 {[%clk 0:02:37]}
8... Nbc6 {[%clk 0:02:08.7]} 9. exd5 {[%clk 0:02:20.7]} 9... Nxd5 {[%clk
0:02:01.4]} 10. Nxd5 {[%clk 0:02:20.3]} 10... Bxd2+ {[%clk 0:02:00]} 11. Rxd2
{[%clk 0:02:19.5]} 11... exd5 {[%clk 0:01:55.2]} 12. Nf4 {[%clk 0:02:19.5]}
12... Bxf1 {[%clk 0:01:54.7]} 13. Rxf1 {[%clk 0:02:20.4]} 13... Re8 {[%clk
0:01:50.6]} 14. c3 {[%clk 0:02:11.9]} 14... Qd6 {[%clk 0:01:39.1]} 15. Qf3
{[%clk 0:02:08.2]} 15... Re4 {[%clk 0:01:35.2]} 16. g3 {[%clk 0:01:35.6]} 16...
Rae8 {[%clk 0:01:34.8]} 17. Re2 {[%clk 0:01:34]} 17... Na5 {[%clk 0:00:55.6]}
18. Rfe1 {[%clk 0:01:31.9]} 18... f5 {[%clk 0:00:52.3]} 19. Rxe4 {[%clk
0:01:01.7]} 19... fxe4 {[%clk 0:00:46.1]} 20. Qh5 {[%clk 0:01:00.9]} 20... Rd8
{[%clk 0:00:42.4]} 21. Qf5 {[%clk 0:00:37.2]} 21... g6 {[%clk 0:00:35.3]} 22.
Qe6+ {[%clk 0:00:35.3]} 22... Qxe6 {[%clk 0:00:35.5]} 23. Nxe6 {[%clk
0:00:36.2]} 23... Rd7 {[%clk 0:00:35.7]} 24. b3 {[%clk 0:00:35.4]} 24... Nb7
{[%clk 0:00:29.7]} 25. Kd2 {[%clk 0:00:33.9]} 25... Nd6 {[%clk 0:00:29.8]} 26.
Nf4 {[%clk 0:00:27.1]} 26... c6 {[%clk 0:00:29.9]} 27. h4 {[%clk 0:00:24.5]}
27... Rf7 {[%clk 0:00:29.9]} 28. Ke3 {[%clk 0:00:22.8]} 28... Kg7 {[%clk
0:00:28.5]} 29. Rc1 {[%clk 0:00:21.2]} 29... h6 {[%clk 0:00:27.4]} 30. Nh3
{[%clk 0:00:16.1]} 30... Rf3+ {[%clk 0:00:24.5]} 31. Ke2 {[%clk 0:00:16.4]}
31... Nb5 {[%clk 0:00:24.4]} 32. c4 {[%clk 0:00:12.3]} 32... Nxd4+ {[%clk
0:00:23.2]} 33. Kf1 {[%clk 0:00:13]} 33... Nf5 {[%clk 0:00:16.6]} 34. Kg2 {[%clk
0:00:12]} 34... Rd3 {[%clk 0:00:12.1]} 35. Nf4 {[%clk 0:00:11.9]} 35... Rd2
{[%clk 0:00:12.4]} 36. cxd5 {[%clk 0:00:12.2]} 36... cxd5 {[%clk 0:00:13.3]} 37.
Rc7+ {[%clk 0:00:11.6]} 37... Kf6 {[%clk 0:00:13.7]} 38. Rxa7 {[%clk 0:00:12]}
38... g5 {[%clk 0:00:09.7]} 39. hxg5+ {[%clk 0:00:11.2]} 39... hxg5 {[%clk
0:00:10.6]} 40. Nh5+ {[%clk 0:00:11.8]} 40... Kg6 {[%clk 0:00:10.8]} 41. g4
{[%clk 0:00:12.5]} 41... Nh4+ {[%clk 0:00:09.7]} 42. Kg1 {[%clk 0:00:10.6]}
42... Rd1+ {[%clk 0:00:07.4]} 43. Kh2 {[%clk 0:00:10.8]} 43... Nf3+ {[%clk
0:00:07.6]} 44. Kg3 {[%clk 0:00:05.9]} 44... Rg1+ {[%clk 0:00:07.9]} 45. Kh3
{[%clk 0:00:06.5]} 45... Rh1+ {[%clk 0:00:08.4]} 46. Kg2 {[%clk 0:00:07.1]}
46... Rg1+ {[%clk 0:00:08.9]} 47. Kh3 {[%clk 0:00:07.4]} 47... d4 {[%clk
0:00:09.2]} 48. Rg7+ {[%clk 0:00:06.9]} 48... Kh6 {[%clk 0:00:09.7]} 49. Rb7
{[%clk 0:00:07.1]} 49... d3 {[%clk 0:00:09.4]} 50. Rxb6+ {[%clk 0:00:07.6]}
50... Kh7 {[%clk 0:00:09.9]} 51. Rb7+ {[%clk 0:00:07.2]} 51... Kg6 {[%clk
0:00:08.4]} 52. Rb6+ {[%clk 0:00:06.3]} 52... Kf7 {[%clk 0:00:08.7]} 53. Rb7+
{[%clk 0:00:04.2]} 53... Ke6 {[%clk 0:00:09.2]} 54. Ng7+ {[%clk 0:00:04.3]}
54... Kd5 {[%clk 0:00:09.7]} 55. Nf5 {[%clk 0:00:04.6]} 55... d2 {[%clk
0:00:07.3]} 56. Ne3+ {[%clk 0:00:05.2]} 56... Kc6 {[%clk 0:00:07.6]} 57. Re7
{[%clk 0:00:03.5]} 57... Re1 {[%clk 0:00:05.8]} 58. Rf7 {[%clk 0:00:01.9]} 58...
Rxe3 {[%clk 0:00:05.6]} 0-1